fUST/lending_fUST_20251003
["ID","MTS","AMOUNT","RATE_DAILY","PERIOD"]
[388883109,1759462789317,-1682.79,0.00018041,2]
[388883110,1759462789505,-1000.0,0.00018041,2]
[388883111,1759462789532,-646.93,0.00018041,2]
[388883112,1759462789580,-346.59,0.00018041,2]
[388883113,1759462789607,-929.56,0.00018041,2]
[388883114,1759462789635,-500.0,0.00018041,2]
[388883115,1759462789663,-764.43,0.00018041,2]
[388883116,1759462789690,-500.0,0.00018041,2]
[388883117,1759462789715,-500.0,0.00018041,2]
[388883118,1759462789740,-500.0,0.00018041,2]
[388883119,1759462789786,-2586.05,0.00018041,2]
[388883120,1759462789814,-923.67,0.00018041,2]
[388883121,1759462789840,-500.0,0.00018041,2]
[388883122,1759462789867,-989.14,0.00018041,2]
[388883123,1759462789922,-500.0,0.00018041,2]
[388883124,1759462789954,-528.43,0.00018041,2]
[388883125,1759462789982,-500.0,0.00018041,2]
[388883126,1759462790010,-890.68,0.00018041,2]
[388883127,1759462790037,-500.0,0.00018041,2]
[388883128,1759462790066,-1701.95,0.00018041,2]
[388883129,1759462790115,-757.89,0.00018041,2]
[388883130,1759462790142,-500.0,0.00018041,2]
[388883131,1759462790169,-500.0,0.00018041,2]
[388883132,1759462790197,-1747.03,0.00018041,2]
[388883133,1759462790226,-640.44,0.00018041,2]
[388883134,1759462790254,-500.0,0.00018041,2]
[388883135,1759462796593,-1434.62,0.0001804,2]
[388883136,1759462796622,-1612.68,0.0001804,2]
[388883137,1759462796650,-960.16,0.00018041,2]
[388883138,1759462796676,-500.0,0.00018041,2]
[388883139,1759462796703,-399.79,0.00018041,2]
[388883140,1759462796835,-185.51,0.00018041,2]
[388883141,1759462796862,-500.0,0.00018041,2]
[388883142,1759462796888,-500.0,0.00018041,2]
[388883143,1759462796915,-518.42,0.00018041,2]
[388883144,1759462796943,-636.36,0.00018041,2]
[388883145,1759462796971,-500.0,0.00018041,2]
[388883146,1759462796999,-639.97,0.00018041,2]
[388883147,1759462797027,-1288.6,0.00018041,2]
[388883148,1759462797069,-1180.38,0.00018041,2]
[388883149,1759462797098,-500.0,0.00018041,2]
[388883150,1759462797125,-839.66,0.00018041,2]
[388883151,1759462797151,-603.85,0.00018041,2]
[388883152,1759462797177,-1280.24,0.00018041,2]
[388883153,1759462797300,-2644.25,0.00018041,2]
[388883154,1759462797326,-500.0,0.00018041,2]
[388883155,1759462797354,-755.35,0.00018041,2]
[388883156,1759462797381,-500.0,0.00018041,2]
[388883157,1759462797408,-500.0,0.00018041,2]
[388883158,1759462797659,-500.0,0.00018041,2]
[388883159,1759462797686,-500.0,0.00018041,2]
[388883160,1759462797714,-500.0,0.00018041,2]
[388883161,1759462797741,-204.87953194,0.00018041,2]
[388883162,1759462797767,-500.0,0.00018042,2]
[388883163,1759462797793,-500.0,0.00018042,2]
[388883164,1759462797819,-500.0,0.00018042,2]
[388883165,1759462797845,-500.0,0.00018042,2]
[388883166,1759462797872,-500.0,0.00018042,2]
[388883167,1759462797897,-533.2,0.00018042,2]
[388883168,1759462797923,-23.85093612,0.00018042,2]
[388883169,1759462806672,-1000.0,0.00018031,2]
[388883170,1759462806701,-1000.49,0.0001804,2]
[388883171,1759462806728,-300.0,0.00018041,2]
[388883172,1759462806759,-1200.0,0.00018041,2]
[388883173,1759462806786,-476.14906388,0.00018042,2]
[388883174,1759462806814,-500.0,0.00018042,2]
[388883175,1759462806843,-438.63878837,0.00018042,2]
[388883176,1759462806942,-500.0,0.00018042,2]
[388883177,1759462806974,-500.0,0.00018042,2]
[388883178,1759462807026,-500.0,0.00018042,2]
[388883179,1759462807060,-500.0,0.00018042,2]
[388883180,1759462807106,-500.0,0.00018042,2]
[388883181,1759462807157,-548.11,0.00018042,2]
[388883182,1759462807192,-500.0,0.00018042,2]
[388883183,1759462807229,-500.0,0.00018042,2]
[388883184,1759462807274,-500.0,0.00018042,2]
[388883185,1759462816818,-1000.0,0.00018031,2]
[388883186,1759462817049,-1037.95421166,0.00018031,2]
[388883187,1759462817091,-500.0,0.00018031,2]
[388883188,1759462817121,-500.0,0.00018031,2]
[388883189,1759462817150,-500.0,0.00018031,2]
[388883190,1759462817177,-500.0,0.00018031,2]
[388883191,1759462817206,-428.89858044,0.00018031,2]
[388883192,1759462817236,-500.0,0.00018031,2]
[388883193,1759462820811,-208.32512577,0.00018027,2]
[388883194,1759462820846,-500.0,0.00018031,2]
[388883195,1759462820876,-500.0,0.00018031,2]
[388883196,1759462820906,-500.0,0.00018031,2]
[388883197,1759462820935,-500.0,0.00018031,2]
[388883198,1759462820965,-500.0,0.00018031,2]
[388883199,1759462820996,-500.0,0.00018031,2]
[388883200,1759462821029,-500.0,0.00018031,2]
[388883201,1759462821060,-500.0,0.00018031,2]
[388883202,1759462821088,-250.0,0.00018031,2]
[388883203,1759462821117,-500.0,0.00018031,2]
[388883204,1759462822788,-250.0,0.00018031,2]
[388883205,1759462822815,-250.0,0.00018031,2]
[388883206,1759462822841,-250.0,0.00018031,2]
[388883207,1759462822867,-250.0,0.00018031,2]
[388883208,1759462822893,-768.05,0.0001804,2]
[388883209,1759462822919,-500.0,0.00018041,2]
[388883210,1759462822945,-500.0,0.00018041,2]
[388883211,1759462822970,-1941.38,0.00018042,2]
[388883212,1759462823001,-81.15,0.00018042,2]
[388883213,1759462824815,-250.0,0.00018031,2]
[388883214,1759462824843,-250.0,0.00018031,2]
[388883215,1759462824871,-250.0,0.00018031,2]
[388883216,1759462824901,-418.85,0.00018042,2]
[388883217,1759462824933,-500.0,0.00018042,2]
[388883218,1759462824961,-500.0,0.00018042,2]
[388883219,1759462824992,-500.0,0.00018042,2]
[388883220,1759462825021,-500.0,0.00018042,2]
[388883221,1759462825051,-728.5,0.00018042,2]
[388883222,1759462825081,-500.0,0.00018042,2]
[388883223,1759462825108,-500.0,0.00018042,2]
[388883224,1759462830299,168.0,0.00017947,2]
[388883225,1759462830552,-250.0,0.00018031,2]
[388883226,1759462830580,-166.0,0.00018031,2]
[388883227,1759462830607,-250.0,0.00018031,2]
[388883228,1759462830633,-152.39147239,0.00018031,2]
[388883229,1759462830661,-250.0,0.00018031,2]
[388883230,1759462830687,-250.0,0.00018031,2]
[388883231,1759462830715,-250.0,0.00018031,2]
[388883232,1759462830743,-250.0,0.00018031,2]
[388883233,1759462830769,-284.78970627,0.00018031,2]
[388883234,1759462830797,-500.0,0.0001804,2]
[388883235,1759462830825,-500.0,0.0001804,2]
[388883236,1759462830850,-282.89846301,0.0001804,2]
[388883237,1759462830876,-500.0,0.0001804,2]
[388883238,1759462830904,-500.0,0.0001804,2]
[388883239,1759462830933,-500.0,0.0001804,2]
[388883240,1759462836367,168.0,0.00017712,2]
[388883241,1759462843435,166431.13360681,0.00017944,2]
[388883242,1759462861546,300.0,0.00018,2]
[388883243,1759462872490,300.0,0.00018,2]
[388883244,1759462882759,300.0,0.00018,2]
[388883245,1759462886451,182.064298,0.00025,30]
[388883246,1759462895417,712.84987802,0.00017944,2]
[388883247,1759462999523,1000.0,0.00017043,2]
[388883248,1759463007013,43551.78000001,0.00017942,2]
[388883249,1759463037195,171.6515626,0.0001704,2]
[388883250,1759463045484,174.55559194,0.0001794,2]
[388883251,1759463072590,151.44,0.00028767,120]
[388883252,1759463189321,1674.16221,0.00017037,2]
[388883253,1759463236194,570.2799024,0.00017941,2]
[388883254,1759463326483,152.73614293,0.00017939,2]
[388883266,1759463432260,-500.0,0.00018012,2]
[388883267,1759463432270,-500.0,0.00018012,2]
[388883268,1759463432280,-1000.0,0.00018012,2]
[388883269,1759463432289,-1200.0,0.00018028,2]
[388883270,1759463432298,-1200.0,0.00018029,2]
[388883271,1759463432310,-300.0,0.00018029,2]
[388883272,1759463432319,-300.0,0.00018029,2]
[388883273,1759463432328,-300.0,0.00018029,2]
[388883274,1759463432337,-166.0,0.0001803,2]
[388883275,1759463432347,-250.0,0.0001803,2]
[388883276,1759463432356,-250.0,0.0001803,2]
[388883277,1759463432365,-250.0,0.0001803,2]
[388883278,1759463432374,-250.0,0.0001803,2]
[388883279,1759463432383,-250.0,0.0001803,2]
[388883280,1759463432392,-277.90458687,0.0001803,2]
[388883281,1759463432401,-1914.39,0.00018031,3]
[388883282,1759463432410,-957.19,0.00018031,3]
[388883283,1759463432419,-478.6,0.00018031,3]
[388883285,1759463432427,-239.3,0.00018031,3]
[388883287,1759463432436,-717.9,0.00018031,3]
[388883288,1759463432445,-4489.360516,0.00018036,2]
[388883290,1759463432455,-500.0,0.00018038,2]
[388883292,1759463432464,-500.0,0.00018038,2]
[388883294,1759463432473,-500.0,0.00018038,2]
[388883296,1759463432482,-683.28,0.00018038,2]
[388883298,1759463432491,-500.0,0.00018038,2]
[388883300,1759463432500,-455.66820395,0.00018039,2]
[388883417,1759463443490,-350.0,0.00018038,2]
[388883420,1759463446287,-141.68851749,0.00018038,2]
[388883421,1759463446298,-512.82575545,0.00018038,2]
[388883422,1759463446310,-500.0,0.00018038,2]
[388883423,1759463446581,-572.90144278,0.00018038,2]
[388883424,1759463446592,-231.58797646,0.00018038,2]
[388883425,1759463446601,-500.0,0.00018038,2]
[388883426,1759463446610,-346.96916729,0.00018038,2]
[388883427,1759463446619,-413.0,0.00018038,2]
[388883428,1759463446628,-500.0,0.00018038,2]
[388883429,1759463446636,-500.0,0.00018038,2]
[388883430,1759463446646,-500.0,0.00018038,2]
[388883431,1759463446655,-44.33179605,0.00018039,2]
[388883432,1759463446665,-500.0,0.00018039,2]
[388883433,1759463446675,-172.02719943,0.00018039,2]
[388883434,1759463446684,-500.0,0.00018039,2]
[388883435,1759463446694,-500.0,0.00018039,2]
[388883436,1759463446704,-536.17,0.00018039,2]
[388883437,1759463446713,-500.0,0.00018039,2]
[388883438,1759463446722,-500.0,0.00018039,2]
[388883439,1759463446732,-500.0,0.00018039,2]
[388883440,1759463446741,-635.84253237,0.00018039,2]
[388883441,1759463446750,-455.65561268,0.00018039,2]
[388883445,1759463462233,151.404,0.00025,30]
[388883446,1759463462487,151.404,0.00025,30]
[388883447,1759463462687,151.404,0.00025,30]
[388883448,1759463463036,151.404,0.00025,30]
[388883449,1759463468011,250.0,0.00017823,2]
[388883450,1759463483695,169.926678,0.00025,30]
[388883451,1759463484069,169.926678,0.00025,30]
[388883452,1759463484474,169.926678,0.00025,30]
[388883453,1759463484776,169.926678,0.00025,30]
[388883454,1759463485065,169.926678,0.00025,30]
[388883455,1759463499440,648.20634834,0.00017941,2]
[388883456,1759463574997,1035.9,0.00028767,120]
[388883457,1759463575108,286.987589,0.00017042,2]
[388883458,1759463578964,653.47533368,0.00017941,2]
[388883459,1759463580954,653.47533365,0.00018011,2]
[388883460,1759463612727,152.73614289,0.00017939,2]
[388883461,1759463652157,475.0,0.00017792,2]
[388883462,1759463655188,475.0,0.00017495,2]
[388883472,1759463886754,152.73614289,0.00017938,2]
[388883473,1759463917685,392.08520019,0.00017939,2]
[388883474,1759463919692,392.08520019,0.00018008,2]
[388883475,1759464074427,5203.13869598,0.00017946,2]
[388883476,1759464098810,204.87190892,0.0001793,2]
[388883477,1759464118931,977.57832921,0.00017144,2]
[388883478,1759464120620,3906.40300354,0.00017144,2]
[388883479,1759464121366,151.404,0.000245,30]
[388883480,1759464121668,151.404,0.00024074,30]
[388883481,1759464150547,152.73614289,0.00017937,2]
[388883482,1759464256076,235.25112013,0.00017938,2]
[388883483,1759464257918,235.25112011,0.00018007,2]
[388883484,1759464334705,3468.75913066,0.00017946,2]
[388883485,1759464365089,-500.0,0.00018012,2]
[388883486,1759464365118,-1200.0,0.00018027,2]
[388883487,1759464365144,-1200.0,0.00018028,2]
[388883488,1759464365173,-1000.0,0.00018028,2]
[388883489,1759464365201,-850.62,0.00018028,3]
[388883490,1759464365229,-198.77,0.00018028,2]
[388883491,1759464367039,-101.23,0.00018028,2]
[388883492,1759464367067,-151.0,0.00018028,2]
[388883493,1759464367096,-1196.49,0.00018029,3]
[388883494,1759464367125,-598.24,0.00018029,3]
[388883495,1759464367153,-299.12,0.00018029,3]
[388883496,1759464367180,-897.41,0.00018029,3]
[388883497,1759464369346,-4796.7192498,0.00018033,2]
[388883498,1759464373073,-406.5715004,0.00018033,2]
[388883499,1759464373101,-500.0,0.00018035,2]
[388883500,1759464373128,-522.74,0.00018035,2]
[388883501,1759464373155,-197.24921949,0.00018035,2]
[388883502,1759464373184,-157.0,0.00018035,2]
[388883503,1759464373213,-500.0,0.00018035,2]
[388883504,1759464373241,-1059.24,0.00018035,2]
[388883505,1759464373269,-654.81,0.00018035,2]
[388883506,1759464373296,-299.56856022,0.00018035,2]
[388883507,1759464376879,-1405.65143978,0.00018035,2]
[388883508,1759464376908,-513.57,0.00018035,2]
[388883509,1759464376936,-2077.16546846,0.00018036,2]
[388883510,1759464376964,-500.0,0.00018036,2]
[388883511,1759464376992,-500.0,0.00018036,2]
[388883512,1759464381094,-500.0,0.00018036,2]
[388883513,1759464381123,-500.0,0.00018036,2]
[388883514,1759464381153,-513.83,0.00018036,2]
[388883515,1759464381183,-500.0,0.00018036,2]
[388883516,1759464381212,-500.0,0.00018036,2]
[388883517,1759464381239,-500.0,0.00018036,2]
[388883518,1759464381266,-500.0,0.00018036,2]
[388883519,1759464381294,-500.0,0.00018036,2]
[388883520,1759464381333,-500.0,0.00018036,2]
[388883521,1759464381360,-472.35,0.00018036,2]
[388883522,1759464383146,-275.49549206,0.00018035,2]
[388883523,1759464383175,-500.0,0.00018035,2]
[388883524,1759464383204,-27.65,0.00018036,2]
[388883525,1759464383233,-536.53,0.00018036,2]
[388883526,1759464383261,-500.0,0.00018036,2]
[388883527,1759464383290,-644.51,0.00018036,2]
[388883528,1759464383318,-500.0,0.00018036,2]
[388883529,1759464383346,-1657.24901588,0.00018036,2]
[388883530,1759464385195,-717.14098412,0.00018036,2]
[388883531,1759464385220,-500.0,0.00018036,2]
[388883532,1759464385247,-500.0,0.00018036,2]
[388883533,1759464385277,-529.58,0.00018036,2]
[388883534,1759464385304,-500.0,0.00018036,2]
[388883535,1759464385331,-500.0,0.00018036,2]
[388883536,1759464385358,-1727.11803176,0.00018036,2]
[388883537,1759464395783,5000.0,0.00018011,2]
[388883538,1759464403599,4400.01,0.00018011,2]
[388883539,1759464404540,152.73614289,0.00017936,2]
[388883540,1759464419865,300.0,0.000179,2]
[388883541,1759464455989,666.0,0.00017037,2]
[388883542,1759464468030,-300.0,0.00018034,2]
[388883543,1759464468061,-1200.0,0.00018034,2]
[388883544,1759464468093,-1392.6915903,0.00018034,2]
[388883545,1759464468123,-1000.0,0.00018034,2]
[388883546,1759464468152,-500.0,0.00018035,2]
[388883547,1759464468181,-500.0,0.00018035,2]
[388883548,1759464469934,-2908.55,0.00018035,2]
[388883549,1759464469963,-500.0,0.00018035,2]
[388883550,1759464469990,-387.89030729,0.00018035,2]
[388883551,1759464470018,-970.64,0.00018035,2]
[388883552,1759464472021,-500.0,0.00018035,2]
[388883553,1759464472053,-500.0,0.00018035,2]
[388883554,1759464472081,-1707.49,0.00018035,2]
[388883555,1759464472111,-1444.71,0.00018035,2]
[388883556,1759464472138,-592.65,0.00018035,2]
[388883557,1759464473969,-510.31,0.00018035,2]
[388883558,1759464473999,-500.0,0.00018035,2]
[388883559,1759464476571,500.0,0.00018035,2]
[388883560,1759464480664,958.8,0.00018035,2]
[388883561,1759464482824,300.0,0.00018035,2]
[388883562,1759464484710,500.0,0.00018035,2]
[388883563,1759464495076,500.0,0.00018035,2]
[388883564,1759464500464,850.86,0.00018035,2]
[388883565,1759464514374,454.50450794,0.00018035,2]
[388883566,1759464514430,219.08350795,0.00018035,2]
[388883567,1759464514772,500.0,0.00018035,2]
[388883568,1759464518620,1626.31,0.00018035,2]
[388883569,1759464524006,500.0,0.00018035,2]
[388883570,1759464524770,500.0,0.00018035,2]
[388883571,1759464529075,500.0,0.00018035,2]
[388883572,1759464533368,69.83198411,0.00018035,2]
[388883573,1759464533392,666.20801589,0.00018035,2]
[388883574,1759464544515,697.95,0.00018028,3]
[388883575,1759464548257,1015.11,0.00018035,2]
[388883576,1759464550711,-300.0,0.00018035,2]
[388883577,1759464552755,-4476.42204455,0.00018036,2]
[388883578,1759464558738,-348.97,0.00018028,3]
[388883579,1759464558767,-500.0,0.00018035,2]
[388883580,1759464558821,-500.0,0.00018035,2]
[388883581,1759464558831,-7802.07,0.00018036,2]
[388883582,1759464570826,5000.0,0.00018011,2]
[388883583,1759464579062,4815.5245709,0.00018011,2]
[388883597,1759464599812,184.4854291,0.00017936,2]
[388883598,1759464601005,289.21224393,0.00017937,2]
[388883599,1759464603062,289.2122439,0.00018007,2]
[388883600,1759464609622,-174.49,0.00018028,3]
[388883601,1759464609652,-523.47,0.00018028,3]
[388883602,1759464609679,-300.0,0.00018034,2]
[388883603,1759464609705,-300.0,0.00018034,2]
[388883604,1759464609732,-192.0,0.00018034,2]
[388883605,1759464609760,-1200.0,0.00018034,2]
[388883606,1759464609789,-300.0,0.00018034,2]
[388883607,1759464609815,-500.0,0.00018035,2]
[388883608,1759464609843,-1085.05,0.00018035,2]
[388883609,1759464610187,-97.07551217,0.00018035,2]
[388883610,1759464610947,207.35,0.000178,2]
[388883611,1759464613310,-1537.09448783,0.00018035,2]
[388883612,1759464613366,-928.52,0.00018035,2]
[388883613,1759464613396,-627.52,0.00018035,2]
[388883614,1759464613424,-500.0,0.00018035,2]
[388883615,1759464613450,-150.0,0.00018035,2]
[388883616,1759464613477,-898.31,0.00018035,2]
[388883617,1759464613608,-717.12102434,0.00018035,2]
[388883618,1759464615270,-279.03897566,0.00018035,2]
[388883619,1759464615298,-2483.66,0.00018035,2]
[388883620,1759464615325,-1761.13,0.00018035,2]
[388883621,1759464615352,-452.35204868,0.00018035,2]
[388883622,1759464615430,-47.64795132,0.00018035,2]
[388883623,1759464623749,784.4654291,0.00018011,2]
[388883661,1759464632890,-847.93,0.00018028,3]
[388883664,1759464632912,-500.0,0.00018035,2]
[388883666,1759464632922,-500.0,0.00018035,2]
[388883668,1759464632932,-541.84561866,0.00018035,2]
[388883670,1759464632941,-14930.75478893,0.00018035,2]
[388883743,1759464638373,-2787.36,0.00018035,2]
[388883744,1759464638382,-500.0,0.00018035,2]
[388883745,1759464638392,-500.0,0.00018035,2]
[388883746,1759464638402,-5214.64,0.00018035,2]
[388883747,1759464638427,-919.36329032,0.00018035,2]
[388883748,1759464638439,-1035.82284951,0.00018035,2]
[388883749,1759464638450,-2765.33170375,0.00018035,2]
[388883750,1759464638461,-449.68474497,0.00018035,2]
[388883791,1759464644956,152.73614289,0.00017936,2]
[388883862,1759464651809,-423.96,0.00018028,3]
[388883863,1759464651838,-211.98,0.00018028,3]
[388883864,1759464651867,-970.14,0.00018035,2]
[388883865,1759464651894,-500.0,0.00018035,2]
[388883866,1759464651921,-643.88,0.00018035,2]
[388883867,1759464651953,-500.0,0.00018035,2]
[388883868,1759464651981,-500.0,0.00018035,2]
[388883869,1759464652138,-1103.22223555,0.00018035,2]
[388883870,1759464652160,-1396.86776445,0.00018035,2]
[388883871,1759464652184,-6396.69776445,0.00018035,2]
[388883872,1759464652193,-166.0,0.00018036,2]
[388883873,1759464652203,-500.0,0.00018036,2]
[388883874,1759464652212,-500.0,0.00018036,2]
[388883875,1759464652222,-500.0,0.00018036,2]
[388883876,1759464652231,-500.0,0.00018036,2]
[388883877,1759464652240,-334.09,0.00018036,2]
[388883878,1759464652561,-165.91,0.00018036,2]
[388883879,1759464652590,-553.22,0.00018036,2]
[388883880,1759464652617,-500.0,0.00018036,2]
[388883881,1759464652644,-500.0,0.00018036,2]
[388883882,1759464652681,-500.0,0.00018036,2]
[388883883,1759464652710,-500.0,0.00018036,2]
[388883884,1759464652739,-1928.85,0.00018036,2]
[388883885,1759464652766,-204.05,0.00018036,2]
[388883886,1759464652931,-295.95,0.00018036,2]
[388883887,1759464653724,-500.0,0.00018036,2]
[388883888,1759464653754,-500.0,0.00018036,2]
[388883889,1759464653781,-928.94,0.00018036,2]
[388883890,1759464653809,-500.0,0.00018036,2]
[388883891,1759464653838,-500.0,0.00018036,2]
[388883892,1759464653865,-500.0,0.00018036,2]
[388883893,1759464653892,-835.69,0.00018036,2]
[388883894,1759464653920,-500.0,0.00018036,2]
[388883895,1759464654050,-470.75,0.00018036,2]
[388883896,1759464661742,-635.98,0.00018029,3]
[388883897,1759464661769,-524.43,0.00018035,2]
[388883898,1759464661796,-500.0,0.00018035,2]
[388883899,1759464661823,-1636.35,0.00018035,2]
[388883900,1759464661851,-29.25,0.00018036,2]
[388883901,1759464661879,-500.0,0.00018036,2]
[388883902,1759464661906,-732.63,0.00018036,2]
[388883903,1759464661933,-382.73,0.00018036,2]
[388883904,1759464662265,-117.27,0.00018036,2]
[388883905,1759464662305,-500.0,0.00018036,2]
[388883906,1759464662334,-500.0,0.00018036,2]
[388883907,1759464662362,-500.0,0.00018036,2]
[388883908,1759464662392,-500.0,0.00018036,2]
[388883909,1759464662422,-500.0,0.00018036,2]
[388883910,1759464662450,-500.0,0.00018036,2]
[388883911,1759464662478,-500.0,0.00018036,2]
[388883912,1759464662507,-530.25,0.00018036,2]
[388883913,1759464662535,-645.79,0.00018036,2]
[388883914,1759464662567,-147.93,0.00018036,2]
[388883915,1759464662607,-352.07,0.00018036,2]
[388883916,1759464662636,-620.47,0.00018036,2]
[388883917,1759464662671,-500.0,0.00018036,2]
[388883918,1759464662701,-306.84153993,0.00018036,2]
[388883919,1759464662729,-1193.06,0.00018036,2]
[388883920,1759464662763,-500.0,0.00018036,2]
[388883921,1759464662793,-1300.6,0.00018036,2]
[388883922,1759464663105,151.404,0.000245,30]
[388883923,1759464663243,-300.0,0.00018035,2]
[388883924,1759464663254,-52.07,0.00018036,2]
[388883925,1759464663270,-453.92692014,0.00018036,2]
[388883926,1759464663324,151.404,0.00024,30]
[388883927,1759464665910,-1246.41,0.00018035,2]
[388883928,1759464665941,-138.08307986,0.00018036,2]
[388883929,1759464665972,-500.0,0.00018036,2]
[388883930,1759464666002,-1286.18,0.00018036,2]
[388883931,1759464666031,-500.0,0.00018036,2]
[388883932,1759464666061,-588.55,0.00018036,2]
[388883933,1759464666091,-607.26,0.00018036,2]
[388883934,1759464666512,-267.04384028,0.00018036,2]
[388883935,1759464671810,-972.24,0.00018035,2]
[388883936,1759464671840,-639.51450767,0.00018035,2]
[388883937,1759464671870,-210.57646221,0.00018035,2]
[388883938,1759464671899,-500.0,0.00018035,2]
[388883939,1759464671937,-2267.02615972,0.00018036,2]
[388883940,1759464671976,-321.2957408,0.00018036,2]
[388883941,1759464672072,-178.7042592,0.00018036,2]
[388883942,1759464672111,-500.0,0.00018036,2]
[388883943,1759464672143,-610.2,0.00018036,2]
[388883944,1759464672175,-500.0,0.00018036,2]
[388883945,1759464672205,-500.0,0.00018036,2]
[388883946,1759464672238,-520.8,0.00018036,2]
[388883947,1759464672271,-844.43,0.00018036,2]
[388883948,1759464672300,-500.0,0.00018036,2]
[388883949,1759464672335,-500.0,0.00018036,2]
[388883950,1759464672368,-500.0,0.00018036,2]
[388883951,1759464672452,-1425.28,0.00018036,2]
[388883952,1759464672481,-915.07,0.00018036,2]
[388883953,1759464672512,-500.0,0.00018036,2]
[388883954,1759464672541,-759.64,0.00018036,2]
[388883955,1759464672570,-500.0,0.00018036,2]
[388883956,1759464672598,-500.0,0.00018036,2]
[388883957,1759464672726,-151.0,0.00018036,2]
[388883958,1759464673009,-49.15,0.00018036,2]
[388883959,1759464673023,-450.85,0.00018036,2]
[388883960,1759464673033,-47.18,0.00018036,2]
[388883961,1759464675564,-791.23,0.00018036,2]
[388883962,1759464675592,-1241.0,0.00018036,2]
[388883963,1759464675619,-500.0,0.00018036,2]
[388883964,1759464675649,-500.0,0.00018036,2]
[388883965,1759464675681,-151.0,0.00018036,2]
[388883966,1759464675709,-500.0,0.00018036,2]
[388883967,1759464675737,-151.0,0.00018036,2]
[388883968,1759464675764,-500.0,0.00018036,2]
[388883969,1759464675792,-500.0,0.00018036,2]
[388883970,1759464675938,-331.55,0.00018036,2]
[388883971,1759464675969,-168.45,0.00018036,2]
[388883972,1759464675998,-158.73914358,0.00018036,2]
[388883973,1759464676024,-500.0,0.00018036,2]
[388883974,1759464676050,-500.0,0.00018036,2]
[388883975,1759464676078,-500.0,0.00018036,2]
[388883976,1759464676103,-500.0,0.00018036,2]
[388883977,1759464676128,-574.46,0.00018036,2]
[388883978,1759464676153,-1279.09,0.00018036,2]
[388883979,1759464676178,-500.0,0.00018036,2]
[388883980,1759464676338,-638.53171284,0.00018036,2]
[388883981,1759464681852,-1105.02,0.00018035,2]
[388883982,1759464681883,-650.02,0.00018035,2]
[388883983,1759464681913,-193.81828716,0.00018036,2]
[388883984,1759464681942,-500.0,0.00018036,2]
[388883985,1759464681972,-500.0,0.00018036,2]
[388883986,1759464682001,-500.0,0.00018036,2]
[388883987,1759464682030,-636.59,0.00018036,2]
[388883988,1759464682059,-500.0,0.00018036,2]
[388883989,1759464682091,-329.11342568,0.00018036,2]
[388883990,1759464682190,-170.88657432,0.00018036,2]
[388883991,1759464682219,-500.0,0.00018036,2]
[388883992,1759464682248,-622.73,0.00018036,2]
[388883993,1759464682277,-500.0,0.00018036,2]
[388883994,1759464682307,-1945.3,0.00018036,2]